[Event "Charlotte Spring-B 2022"]
[Site "Charlotte"]
[Date "2022.03.19"]
[Round "6.5"]
[White "Poliannikov, Danila"]
[Black "Johnson, Donald"]
[Result "1-0"]
[ECO "C88"]
[WhiteElo "2273"]
[BlackElo "2060"]
[Annotator "NA"]
[PlyCount "142"]
[EventDate "2022.03.16"]
[EventType "tourn"]
[EventCountry "USA"]
[SourceTitle "playchess.com"]
[Source "ChessBase"]
[SourceQuality "1"]
[TimeControl "5400+30"]

1. e4 {[%emt 0:00:01]} e5 {[%emt 0:00:54]} 2. Nf3 {[%emt 0:00:09]} Nc6 {[%emt 0:00:02]} 3. Bb5 {[%emt 0:00:04]} a6 {[%emt 0:00:05]} 4. Ba4 {[%emt 0:00:08]} Nf6 {[%emt 0:00:08]} 5. O-O {[%emt 0:00:03]} Be7 {[%emt 0:00:35]} 6. Re1 {[%emt 0:00:03]} b5 {[%emt 0:00:02]} 7. Bb3 {[%emt 0:00:02]} O-O {[%emt 0:00:10]} 8. a4 {[%emt 0:00:02]} b4 {[%emt 0:00:06]} 9. d3 {[%emt 0:00:24]} d6 {[%emt 0:00:09]} 10. Nbd2 {[%emt 0:01:49]} Na5 {[%emt 0:00:26]} 11. Ba2 {[%emt 0:00:16]} c5 {[%emt 0:00:02]} 12. Nc4 {[%emt 0:04:12]} Nc6 {[%emt 0:00:11]} 13. Bd2 {[%emt 0:19:00]} Rb8 {[%emt 0:09:24]} 14. h3 {[%emt 0:02:41]} h6 {[%emt 0:00:29]} 15. Ne3 {[%emt 0:05:10]} Be6 {[%emt 0:03:49]} 16. Bc4 {[%emt 0:00:10]} Bxc4 {[%emt 0:09:10]} 17. Nxc4 {[%emt 0:00:27]} Re8 {[%emt 0:02:28]} 18. Nh2 {[%emt 0:07:14]} d5 {[%emt 0:18:10]} 19. exd5 {[%emt 0:02:33]} Nxd5 {[%emt 0:03:00]} 20. Nf3 {[%emt 0:21:26]} Bf6 {[%emt 0:01:09]} 21. Qe2 {[%emt 0:35:06]} Kh7 {[%emt 0:12:06]} 22. Be3 {[%emt 0:00:00]} b3 {[%emt 0:13:49]} 23. Bxc5 {[%emt 0:00:00]} Ndb4 {[%emt 0:12:59]} 24. Qe4+ {[%emt 0:00:00]} Kg8 {[%emt 0:01:02]} 25. Nd6 {[%emt 0:00:00]} Re6 {[%emt 0:03:13]} 26. c3 {[%emt 0:00:00]} Nc2 {[%emt 0:00:07]} 27. Nc4 {[%emt 0:00:00]} Nxa1 {[%emt 0:01:13]} 28. Rxa1 {[%emt 0:00:00]} Qc7 {[%emt 0:02:00]} 29. a5 {[%emt 0:00:00]} Ne7 {[%emt 0:08:02]} 30. Bb6 {[%emt 0:00:16]} Qc6 {[%emt 0:00:00]} 31. Nfd2 {[%emt 0:00:15]} Nd5 {[%emt 0:01:00]} 32. Nxb3 {[%emt 0:00:22]} Nxb6 {[%emt 0:00:00]} 33. Qxc6 {[%emt 0:00:54]} Rxc6 {[%emt 0:00:00]} 34. axb6 {[%emt 0:00:09]} Bd8 {[%emt 0:00:00]} 35. Nba5 {[%emt 0:02:02]} Re6 {[%emt 0:00:00]} 36. b7 {[%emt 0:00:06]} Kf8 {[%emt 0:00:00]} 37. Kf1 {[%emt 0:00:21]} Ke8 {[%emt 0:00:00]} 38. b4 {[%emt 0:00:34]} Kd7 {[%emt 0:00:00]} 39. Ke2 {[%emt 0:00:30]} Kc7 {[%emt 0:00:00]} 40. Nb3 {[%emt 0:00:39]} Be7 {[%emt 0:00:40]} 41. Nca5 {[%emt 0:00:23]} Rd8 {[%emt 0:00:54]} 42. Rd1 {[%emt 0:00:00]} Kb8 {[%emt 0:00:43]} 43. Ke3 {[%emt 0:01:07]} f5 {[%emt 0:01:18]} 44. Nd2 {[%emt 0:00:20]} Bg5+ {[%emt 0:00:30]} 45. Ke2 {[%emt 0:00:01]} e4 {[%emt 0:00:27]} 46. d4 {[%emt 0:00:39]} f4 {[%emt 0:00:36]} 47. Ndc4 {[%emt 0:00:30]} f3+ {[%emt 0:01:54]} 48. Kf1 {[%emt 0:03:00]} fxg2+ 49. Kxg2 {[%emt 0:00:01]} Bf4 {[%emt 0:01:16]} 50. d5 {[%emt 0:00:26]} Rg6+ {[%emt 0:00:09]} 51. Kf1 {[%emt 0:02:25]} Rf6 {[%emt 0:00:47]} 52. Ke2 {[%emt 0:00:00]} Bc7 {[%emt 0:00:22]} 53. Nc6+ {[%emt 0:00:00]} Kxb7 {[%emt 0:00:06]} 54. Nxd8+ {[%emt 0:00:00]} Bxd8 {[%emt 0:00:01]} 55. Rd4 {[%emt 0:00:00]} Rf4 {[%emt 0:00:28]} 56. Nd6+ {[%emt 0:00:00]} Kc7 {[%emt 0:00:10]} 57. Rxe4 {[%emt 0:00:08]} Rf8 {[%emt 0:00:08]} 58. Ne8+ {[%emt 0:00:41]} Kd7 {[%emt 0:00:10]} 59. Nxg7 {[%emt 0:00:04]} Bf6 {[%emt 0:00:05]} 60. Ne6 {[%emt 0:00:11]} Rb8 {[%emt 0:00:01]} 61. Nc5+ {[%emt 0:00:19]} Kd8 {[%emt 0:04:15]} 62. Kd3 {[%emt 0:00:49]} h5 {[%emt 0:00:00]} 63. Nxa6 {[%emt 0:00:17]} Ra8 {[%emt 0:00:00]} 64. Re6 {[%emt 0:00:11]} Be7 {[%emt 0:00:00]} 65. b5 {[%emt 0:00:11]} Kd7 {[%emt 0:00:00]} 66. c4 {[%emt 0:00:09]} Rf8 {[%emt 0:00:00]} 67. c5 {[%emt 0:00:23]} Rf3+ {[%emt 0:00:00]} 68. Re3 {[%emt 0:00:19]} Rxf2 {[%emt 0:00:00]} 69. c6+ {[%emt 0:00:17]} Kd6 {[%emt 0:00:00]} 70. Re6+ {[%emt 0:00:14]} Kxd5 {[%emt 0:00:00]} 71. Rxe7 {[%emt 0:05:47]} Rf3+ {[%emt 0:05:00]} 1-0